bitfinex/quotes_ETHUSD_20250914
["timestamp","ask_amount","ask_price","bid_price","bid_amount"]
[1757853786570,2.15964063,4630.4,4630.3,0.001]
[1757853786729,2.74688412,4630.4,4630.3,0.20318449]
[1757853786930,3.96988412,4630.4,4630.3,0.20318449]
[1757853787146,5.16950248,4630.4,4630.3,0.20318449]
[1757853787341,3.50678412,4630.4,4630.3,0.20318449]
[1757853787545,5.76064063,4630.4,4630.3,0.20318449]
[1757853787742,6.17797119,4630.4,4630.3,0.20318449]
[1757853787943,7.10497119,4630.4,4630.3,0.20318449]
[1757853789063,8.07799856,4630.4,4630.3,0.20318449]
[1757853791276,8.07799856,4630.4,4630.3,0.2030945]
[1757853791473,8.07799856,4630.4,4630.3,0.001]
[1757853791660,8.07799856,4630.4,4630.3,0.20306616]
[1757853793046,7.10497119,4630.4,4630.3,0.20306616]
[1757853793245,6.64107119,4630.4,4630.3,0.20306616]
[1757853794157,7.10497119,4630.4,4630.3,0.20306616]
[1757853796745,6.64187119,4630.4,4630.3,0.20306616]
[1757853796983,7.07927119,4630.4,4630.3,0.20306616]
[1757853797361,8.75172856,4630.4,4630.3,0.20306616]
[1757853799489,8.75158594,4630.4,4630.3,0.20306616]
[1757853800786,8.74958165,4630.4,4630.3,0.20293135]
[1757853802454,12.21492078,4630.4,4630.3,0.001]
[1757853805954,19.23492078,4630.4,4630.3,0.001]
[1757853806155,18.33362078,4630.4,4630.3,0.001]
[1757853807482,18.77102078,4630.4,4630.3,0.001]
[1757853807702,13.36516341,4630.4,4630.3,0.3128]
[1757853807910,9.30082428,4630.4,4630.3,0.3128]
[1757853808053,12.90082428,4630.4,4630.3,0.51462999]
[1757853808250,9.30082428,4630.4,4630.3,0.51462999]
[1757853808475,12.77964063,4630.4,4630.3,0.51462999]
[1757853809280,9.30079507,4630.4,4630.3,0.51462999]
[1757853809522,12.90079507,4630.4,4630.3,0.51462999]
[1757853810685,0.002,4630.8,4630.3,1.34832999]
[1757853810891,2.15959399,4630.5,4630.4,0.70842639]
[1757853811126,2.15959399,4630.5,4630.4,1.36892639]
[1757853811127,5.75959399,4630.5,4630.4,1.36892639]
[1757853811488,2.15959399,4630.5,4630.4,1.36892639]
[1757853811729,2.15952842,4630.7,4630.4,1.48432263]
[1757853811930,3.6,4630.6,4630.5,0.20182999]
[1757853812110,3.6,4630.6,4630.5,1.34732999]
[1757853812433,5.75954735,4630.6,4630.5,1.34732999]
[1757853812638,2.15954735,4630.6,4630.5,0.51362999]
[1757853812789,5.75954735,4630.6,4630.5,0.51362999]
[1757853812991,6.07434735,4630.6,4630.5,0.20182999]
[1757853813299,6.99744735,4630.6,4630.5,0.20182999]
[1757853813694,2.47434735,4630.6,4630.5,0.20182999]
[1757853813929,5.75854735,4630.6,4630.5,0.20182999]
[1757853814118,5.96037734,4630.6,4630.5,0.20182999]
[1757853815527,6.76087734,4630.6,4630.5,0.20182999]
[1757853815721,7.19827734,4630.6,4630.5,0.20182999]
[1757853816219,7.19827734,4630.6,4630.5,0.18452999]
[1757853816395,6.71257734,4630.6,4630.5,0.18452999]
[1757853816722,5.96037734,4630.6,4630.5,0.18452999]
[1757853816944,5.96037734,4630.6,4630.5,0.49632999]
[1757853818626,2.36137734,4630.6,4630.5,0.49632999]
[1757853818830,2.36137734,4630.6,4630.5,0.18452999]
[1757853818831,5.75854735,4630.6,4630.5,0.18452999]
[1757853819032,6.51074735,4630.6,4630.5,0.18452999]
[1757853819428,6.07334735,4630.6,4630.5,0.18452999]
[1757853819759,6.99644735,4630.6,4630.5,0.18452999]
[1757853820131,3.39744735,4630.6,4630.5,0.18452999]
[1757853820451,2.15954735,4630.6,4630.5,0.18452999]
[1757853820755,5.75754735,4630.6,4630.5,0.18452999]
[1757853820948,2.15954735,4630.6,4630.5,0.18452999]
[1757853821256,5.75754735,4630.6,4630.5,0.49632999]
[1757853821851,3.598,4630.6,4630.5,0.49632999]
[1757853822153,5.75754735,4630.6,4630.5,0.49632999]
[1757853822557,3.597,4630.6,4630.5,0.49632999]
[1757853822731,3.597,4630.6,4630.5,0.98132999]
[1757853823260,3.597,4630.6,4630.5,0.49632999]
[1757853825426,5.75654735,4630.6,4630.5,0.18452999]
[1757853825954,2.16149892,4630.8,4630.5,0.49632999]
[1757853826135,3.597,4630.7,4630.5,0.3118]
[1757853826455,3.597,4630.7,4630.3,0.001]
[1757853826456,0.1072,4630.5,4630.3,0.001]
[1757853826758,3.596,4630.4,4630.3,0.001]
[1757853827658,5.75564063,4630.4,4630.3,0.001]
[1757853828179,5.75564063,4630.4,4630.3,0.20267149]
[1757853828359,6.51604063,4630.4,4630.3,0.20267149]
[1757853828657,6.05434063,4630.4,4630.3,0.20267149]
[1757853829157,5.75564063,4630.4,4630.3,0.20267149]
[1757853829352,2.15964063,4630.4,4630.3,0.20267149]
[1757853829557,5.75564063,4630.4,4630.3,0.20267149]
[1757853830057,6.51604063,4630.4,4630.3,0.20267149]
[1757853830232,3.596,4630.4,4630.3,0.20267149]
[1757853830859,2.15964063,4630.4,4630.3,0.20267149]
[1757853831155,5.75464063,4630.4,4630.3,0.20267149]
[1757853831354,6.05334063,4630.4,4630.3,0.20267149]
[1757853831554,6.96754063,4630.4,4630.3,0.20267149]
[1757853832765,6.51504063,4630.4,4630.3,0.20267149]
[1757853833148,6.05334063,4630.4,4630.3,0.20267149]
[1757853833337,5.75464063,4630.4,4630.3,0.20267149]
[1757853833969,6.06944063,4630.4,4630.3,0.20267149]
[1757853834136,6.95694063,4630.4,4630.3,0.20267149]
[1757853835676,3.36194063,4630.4,4630.3,0.20267149]
[1757853835861,6.95694063,4630.4,4630.3,0.20267149]
[1757853836439,3.595,4630.4,4630.3,0.20267149]
[1757853836641,0.1072,4630.5,4630.3,0.51767149]
[1757853836867,3.594,4630.4,4630.3,0.316]
[1757853837168,5.75364063,4630.4,4630.3,0.51791499]
[1757853837466,6.50164063,4630.4,4630.3,0.20291499]
[1757853838947,2.90764063,4630.4,4630.3,0.20291499]
[1757853839246,3.594,4630.4,4630.3,0.51791499]
[1757853840411,0.1072,4630.5,4630.3,0.51791499]
[1757853840729,3.594,4630.4,4630.3,0.316]
[1757853840911,3.594,4630.4,4630.3,0.51816824]
[1757853841610,0.1072,4630.5,4630.3,0.51816824]
[1757853841768,3.7022,4630.5,4630.4,0.20216824]
[1757853841963,3.7022,4630.5,4630.4,0.51716824]
[1757853842483,0.1072,4630.5,4630.4,0.20216824]
[1757853842666,7.06309399,4630.5,4630.4,0.20216824]
[1757853842987,3.7012,4630.5,4630.4,0.20216824]
[1757853843301,5.86079399,4630.5,4630.4,0.20216824]
[1757853843794,6.60879399,4630.5,4630.4,0.20216824]
[1757853844402,6.17559399,4630.5,4630.4,0.20216824]
[1757853844701,7.06309399,4630.5,4630.4,0.20216824]
[1757853847001,2.26679399,4630.5,4630.4,0.20216824]
[1757853847201,3.7002,4630.5,4630.4,0.51716824]
[1757853847401,0.1072,4630.5,4630.4,0.51716824]
[1757853847602,3.7002,4630.5,4630.4,0.51716824]
[1757853847801,0.1072,4630.5,4630.4,0.51716824]
[1757853848036,3.7002,4630.5,4630.4,0.51716824]
[1757853848234,3.7002,4630.5,4630.4,0.20216824]
[1757853848626,3.7002,4630.5,4630.4,0.51716824]
[1757853849541,0.1072,4630.5,4630.4,3.51050887]
[1757853849757,0.1072,4630.5,4630.4,4.07979133]
[1757853850763,0.1072,4630.5,4630.4,1.9201507]
[1757853850921,0.1072,4630.5,4630.4,4.07979133]
[1757853851106,0.1072,4630.5,4630.4,4.11156133]
[1757853851309,0.1072,4630.5,4630.4,3.76286133]
[1757853851813,0.1072,4630.5,4630.4,1.1182207]
[1757853852236,0.1072,4630.5,4630.4,2.70857887]
[1757853852408,0.1072,4630.5,4630.4,0.54893824]
[1757853853045,0.1072,4630.5,4630.4,2.70857887]
[1757853854236,0.1092,4630.5,4630.4,2.70857887]
[1757853855157,0.1092,4630.5,4630.4,0.54893824]
[1757853855961,0.1092,4630.5,4630.4,2.70857887]
[1757853857163,0.1092,4630.5,4630.4,2.39357887]
[1757853857763,0.1092,4630.5,4630.4,2.67957887]
[1757853860738,0.1092,4630.5,4630.4,0.51993824]
[1757853861388,0.4256,4630.5,4630.4,0.23393824]
[1757853861538,3.49399399,4630.5,4630.4,0.23393824]
[1757853861878,4.0598439,4630.5,4630.4,0.23393824]
[1757853862760,7.6508439,4630.5,4630.4,0.23393824]
[1757853863496,5.49124991,4630.5,4630.4,0.23393824]
[1757853863870,3.9094,4630.5,4630.4,0.23393824]
[1757853864581,4.3377,4630.5,4630.4,0.23393824]
[1757853866054,4.3397,4630.5,4630.4,0.23393824]
[1757853866686,3.595,4630.5,4630.4,0.23393824]
[1757853866995,3.595,4630.5,4626.2,3.84816331]
[1757853866996,0.5757517,4630.4,4628.8,0.08]
[1757853867167,2.47674046,4628.9,4628.8,0.08]
[1757853867371,7.46724121,4628.9,4628.8,0.08]
[1757853867993,8.11574474,4628.9,4628.8,0.08]
[1757853868558,8.54246579,4628.9,4628.8,0.08]
[1757853871067,8.11574474,4628.9,4628.8,0.08]
[1757853872598,8.11574474,4628.9,4628.8,0.081]
[1757853877143,6.89054474,4628.9,4628.8,0.081]
[1757853877637,7.63524474,4628.9,4628.8,0.081]
[1757853877937,8.11574474,4628.9,4628.8,0.081]
[1757853881322,6.89054474,4628.9,4628.8,0.081]
[1757853881508,6.42684399,4628.9,4628.8,0.081]
[1757853881721,7.17154399,4628.9,4628.8,0.081]
[1757853882110,7.65204399,4628.9,4628.8,0.081]
[1757853884534,7.17154399,4628.9,4628.8,0.081]
[1757853884747,6.42684399,4628.9,4628.8,0.081]
[1757853885646,0.108,4628.9,4628.8,0.367]
[1757853885814,0.108,4628.9,4628.8,0.48401]
[1757853886013,0.108,4628.9,4628.8,0.367]
[1757853887016,0.8839,4628.9,4628.8,0.081]
[1757853887215,1.248,4628.9,4628.8,0.081]
[1757853887429,3.42993888,4628.9,4628.8,0.081]
[1757853887627,3.40834046,4628.9,4628.8,0.081]
[1757853888946,3.42993888,4628.9,4628.8,0.081]
[1757853889128,4.39406167,4628.9,4628.8,0.081]
[1757853891948,5.04261286,4628.9,4628.8,0.081]
[1757853892156,4.37246325,4628.9,4628.8,0.081]
[1757853892463,4.39406167,4628.9,4628.8,0.081]
[1757853892830,3.40834046,4628.9,4628.8,0.081]
[1757853893031,3.75704046,4628.9,4628.8,0.081]
[1757853893227,2.94764046,4628.9,4628.8,0.081]
[1757853893643,2.16034046,4628.9,4628.8,0.081]
[1757853895561,2.16034046,4628.9,4628.8,0.28292191]
[1757853895935,5.49221876,4628.9,4626.9,0.64846147]
[1757853896132,7.89138014,4628.8,4626.9,0.64846147]
[1757853896332,7.89138014,4628.8,4626.8,0.08]
[1757853896333,0.58105221,4628.2,4627.1,2.16118051]
[1757853896561,2.16048873,4628.6,4627.0,0.47341765]
[1757853896562,3.625,4628.1,4627.2,0.27427934]
[1757853896764,3.625,4628.0,4627.2,0.01081952]
[1757853896928,3.625,4627.9,4627.2,0.01081952]
[1757853897134,0.108,4627.3,4627.2,0.01081952]
[1757853897367,0.108,4627.3,4627.2,2.17195368]
[1757853897562,0.108,4627.3,4627.2,0.89824489]
[1757853897972,0.108,4627.3,4627.2,0.29991952]
[1757853898265,0.108,4627.3,4627.2,2.46105368]
[1757853898470,0.108,4627.6,4627.4,2.16103301]
[1757853898664,0.108,4627.6,4627.5,0.01081975]
[1757853898856,0.108,4627.6,4627.5,0.58741528]
[1757853899564,0.108,4627.6,4627.5,2.74840933]
[1757853899781,3.344,4628.2,4627.6,2.16094383]
[1757853900077,0.108,4627.9,4627.7,2.17171036]
[1757853900380,0.108,4627.9,4627.8,2.44995396]
[1757853900583,0.64849091,4628.9,4627.9,2.160767]
[1757853900791,0.108,4628.2,4627.9,2.160767]
[1757853901083,0.108,4628.2,4628.1,0.2891]
[1757853902700,0.108,4628.2,4627.8,0.2798654]
[1757853902852,0.108,4628.2,4627.7,0.792]
[1757853903557,0.108,4628.2,4627.7,2.16088352]
[1757853903876,0.108,4628.2,4627.7,0.792]
[1757853904186,0.108,4628.2,4627.9,2.16080727]
[1757853904383,0.108,4628.2,4628.1,0.2891]
[1757853904757,0.108,4628.2,4627.6,0.792]
[1757853904964,0.108,4628.2,4627.7,2.16089611]
[1757853905284,4.0828,4628.6,4627.1,3.622]
[1757853905285,0.3052,4627.8,4627.1,3.622]
[1757853905470,0.3052,4627.8,4627.2,3.792]
[1757853905471,0.4132,4627.8,4627.2,3.792]
[1757853905651,0.108,4627.8,4627.7,0.2891]
[1757853905858,0.108,4627.8,4627.7,0.29991695]
[1757853907084,0.108,4627.8,4627.7,0.2891]
[1757853907585,0.108,4627.8,4627.7,0.29991695]
[1757853907955,0.108,4627.8,4627.7,0.50185449]
[1757853908387,0.108,4627.8,4627.7,0.29991695]
[1757853908569,0.108,4627.8,4627.7,0.2891]
[1757853908894,0.108,4627.8,4627.7,2.45000066]
[1757853909192,0.108,4628.2,4627.7,2.94705584]
[1757853909972,0.11,4628.2,4627.7,2.94705584]
[1757853910172,0.11,4628.2,4627.8,2.16084213]
[1757853910683,0.11,4628.2,4627.7,2.65793787]
[1757853910912,0.11,4628.2,4627.8,2.16085058]
[1757853911071,0.11,4628.2,4627.9,2.16080282]
[1757853911277,0.11,4628.2,4628.1,0.2891]
[1757853911480,0.11,4628.2,4628.1,2.44981389]
[1757853911785,0.002,4628.2,4628.1,3.26111389]
[1757853912188,0.002,4628.2,4628.1,4.05311389]
[1757853912360,0.002,4628.2,4628.1,4.73566464]
[1757853912564,0.002,4628.2,4628.1,4.84366464]
[1757853912962,0.002,4628.2,4628.1,7.84366464]
[1757853914484,0.002,4628.2,4628.1,5.04515075]
[1757853914709,0.002,4628.2,4628.1,8.49265075]
[1757853915513,0.002,4628.2,4628.1,10.36426464]
[1757853915677,0.002,4628.2,4628.1,8.20255075]
[1757853916006,0.7619,4628.2,4628.1,8.20255075]
[1757853916174,0.7619,4628.2,4628.1,10.36326464]
[1757853916380,0.002,4628.2,4628.1,6.74326464]
[1757853916697,0.002,4628.2,4628.1,9.68071389]
[1757853916893,0.002,4628.2,4628.1,9.99641389]
[1757853917604,0.002,4628.2,4628.1,10.80621389]
[1757853917986,0.002,4628.2,4628.1,9.99641389]
[1757853918687,0.002,4628.2,4628.1,7.0437]
[1757853919092,0.002,4628.2,4628.1,9.20441389]
[1757853919278,0.002,4628.2,4628.1,10.34093471]
[1757853919619,0.002,4628.2,4627.5,2.51065371]
[1757853919620,2.16094735,4627.6,4627.5,0.001]
[1757853919824,3.41774735,4627.6,4627.5,0.001]
[1757853920006,3.44475919,4627.6,4627.5,0.001]
[1757853920173,3.41774735,4627.6,4627.5,0.001]
[1757853920378,4.27560956,4627.6,4627.5,0.001]
[1757853920580,4.39629217,4627.6,4627.5,0.001]
[1757853921283,4.27560956,4627.6,4627.5,0.001]
[1757853921483,4.39622957,4627.6,4627.5,0.001]
[1757853921678,4.27560956,4627.6,4627.5,0.001]
[1757853922504,4.92424488,4627.6,4627.5,0.001]
[1757853925540,4.27560956,4627.6,4627.5,0.001]
[1757853930236,4.3026214,4627.6,4627.5,0.001]
[1757853934845,5.78994735,4627.6,4627.5,0.3132]
[1757853935065,3.629,4627.6,4627.5,0.3132]
[1757853935543,3.9207,4627.6,4627.5,0.001]
[1757853935869,4.3866,4627.6,4627.5,0.001]
[1757853936636,3.9207,4627.6,4627.5,0.001]
[1757853936844,3.629,4627.6,4627.5,0.001]
[1757853937060,5.78994735,4627.6,4627.5,0.001]
[1757853937230,6.08164735,4627.6,4627.5,0.001]
[1757853937858,3.9207,4627.6,4627.5,0.001]
[1757853938044,4.3866,4627.6,4627.5,0.001]
[1757853938554,6.54754735,4627.6,4627.5,0.001]
[1757853939262,7.03954735,4627.6,4627.5,0.001]
[1757853940164,3.41054735,4627.6,4627.5,0.001]
[1757853940367,7.03754735,4627.6,4627.5,0.001]
[1757853941155,6.07964735,4627.6,4627.5,0.001]
[1757853941337,3.627,4627.6,4627.5,0.001]
[1757853941842,5.78794735,4627.6,4627.5,0.001]
[1757853942057,3.627,4627.6,4627.5,0.001]
[1757853942837,5.78794735,4627.6,4627.5,0.001]
[1757853943268,2.16080727,4627.9,4627.5,0.001]
[1757853943472,1.01407122,4627.9,4627.5,0.001]
[1757853943667,1.47997122,4627.9,4627.5,0.001]
[1757853943840,3.625,4627.8,4627.5,0.001]
[1757853944041,2.16094735,4627.6,4627.5,0.001]
[1757853944240,5.78594735,4627.6,4627.5,0.001]
[1757853944552,6.54354735,4627.6,4627.5,0.001]
[1757853945498,7.03554735,4627.6,4627.5,0.001]
[1757853945873,4.8746,4627.6,4627.5,0.001]
[1757853946070,7.03554735,4627.6,4627.5,0.001]
[1757853947474,7.84050921,4627.6,4627.5,0.001]
[1757853947983,4.71966186,4627.6,4627.5,0.001]
[1757853948187,3.9147,4627.6,4627.5,0.001]
[1757853948792,1.44237122,4627.9,4627.5,0.001]
[1757853948983,3.623,4627.8,4627.5,0.001]
[1757853949185,4.0513,4627.8,4627.5,0.001]
[1757853949387,1.49817122,4627.9,4627.5,0.001]
[1757853949571,3.622,4627.8,4627.5,0.001]
[1757853950185,3.622,4627.7,4627.5,0.001]
[1757853951004,3.622,4627.6,4627.5,0.001]
[1757853951402,1.01407122,4627.9,4627.5,0.001]
[1757853951579,3.622,4627.8,4627.5,0.001]
[1757853951896,4.0503,4627.8,4627.5,0.001]
[1757853952195,7.022,4628.1,4627.7,0.2904]
[1757853952415,5.7817625,4628.0,4627.7,0.2904]
[1757853952580,3.621,4627.9,4627.7,0.2904]
[1757853953288,7.022,4628.1,4627.7,0.2904]
[1757853953492,3.621,4628.0,4627.7,0.2904]
[1757853953886,7.022,4628.1,4627.7,0.2904]
[1757853954092,0.108,4627.9,4627.7,1.1099]
[1757853954484,0.108,4627.9,4627.7,0.2904]
[1757853955898,3.622,4627.8,4627.7,0.2904]
[1757853957721,0.002,4628.1,4627.8,2.16085396]
[1757853957889,0.002,4628.1,4628.0,2.16076058]
[1757853958091,0.002,4628.1,4628.0,2.45116058]
[1757853958420,0.002,4628.1,4628.0,3.25596058]
[1757853959222,0.002,4628.1,4628.0,4.04796058]
[1757853962234,0.002,4628.1,4628.0,3.24316058]
[1757853962417,0.002,4628.1,4628.0,3.81263557]
[1757853962928,0.002,4628.1,4628.0,0.56947499]
[1757853963133,0.002,4628.1,4627.9,2.16080285]
[1757853964298,0.002,4628.1,4628.0,2.16076058]
[1757853964633,0.002,4628.1,4627.9,2.16079988]
[1757853964829,0.002,4628.1,4628.0,2.45116058]
[1757853967543,0.002,4628.1,4628.0,3.25397403]
[1757853967731,0.002,4628.1,4628.0,4.15596058]
[1757853968741,0.002,4628.1,4628.0,3.80726058]
[1757853968940,0.002,4628.1,4628.0,7.15596058]
[1757853969146,0.002,4628.1,4628.0,8.53797663]
[1757853970420,0.002,4628.2,4628.0,8.53797663]
[1757853970644,0.001,4628.3,4628.2,5.95266721]
[1757853970843,0.001,4628.3,4628.2,7.61066721]
[1757853971069,0.001,4628.3,4628.2,8.70586721]
[1757853971252,0.001,4628.3,4628.2,10.39096852]
[1757853972522,1e-08,4628.7,4628.6,2.95248049]
[1757853972727,1e-08,4628.7,4628.6,6.57548049]
[1757853973032,1e-08,4628.7,4628.6,7.77868049]
[1757853973916,1e-08,4628.7,4628.6,10.77868049]
[1757853974111,1e-08,4628.7,4628.6,12.58866367]
[1757853980149,1e-08,4628.7,4628.6,8.16086367]
[1757853980354,1e-08,4628.7,4628.6,11.78086367]
[1757853980563,1e-08,4628.7,4628.6,10.69746367]
[1757853980741,0.30420001,4628.7,4628.6,11.48946367]
[1757853981462,1.22820001,4628.7,4628.6,7.07846367]
[1757853981641,1.22820001,4628.7,4628.6,10.69746367]
[1757853981964,1.22820001,4628.7,4628.6,5.26848049]
[1757853982170,1.22820001,4628.7,4628.6,8.88848049]
[1757853982338,1.22820001,4628.7,4628.6,9.68048049]
[1757853982539,1.22820001,4628.7,4628.6,6.06048049]
[1757853982756,1.22820001,4628.7,4628.6,9.68048049]
[1757853982956,1.22820001,4628.7,4628.6,10.66838377]
[1757853983158,0.30420001,4628.7,4628.6,10.66838377]
[1757853983670,0.76920001,4628.7,4628.6,10.66838377]
[1757853983872,1.22820001,4628.7,4628.6,10.66838377]
[1757853984040,1.22820001,4628.7,4628.6,7.04838377]
[1757853984370,1.22820001,4628.7,4628.6,10.66738377]
[1757853984575,1.22820001,4628.7,4628.6,7.04838377]
[1757853984776,1.22820001,4628.7,4628.6,7.519]
[1757853984947,1.22820001,4628.7,4628.6,6.619]
[1757853985135,1.22820001,4628.7,4628.6,5.16048049]
[1757853986354,1.22820001,4628.7,4628.6,3.0]
[1757853987374,1.22820001,4628.7,4628.6,5.16048049]
[1757853991190,1e-08,4628.7,4628.6,5.95248049]
[1757853991493,1e-08,4628.7,4628.6,7.23338562]
[1757853991990,0.30420001,4628.7,4628.6,7.23338562]
[1757853992491,0.76920001,4628.7,4628.6,7.23338562]
[1757853992986,1.22820001,4628.7,4628.6,7.23338562]
[1757853993192,0.76920001,4628.7,4628.6,7.23338562]
[1757853994888,0.30420001,4628.7,4628.6,7.23338562]
[1757853995378,1e-08,4628.7,4628.6,7.23338562]
[1757853995686,1e-08,4628.7,4628.6,7.41418562]
[1757853995993,1e-08,4628.7,4628.6,7.52218562]
[1757853996860,1e-08,4628.7,4628.6,8.35368562]
[1757853997207,1e-08,4628.7,4628.6,8.00498562]
[1757853997413,1e-08,4628.7,4628.6,7.52218562]
[1757853997573,1e-08,4628.7,4628.6,9.18018562]
[1757853999187,1e-08,4628.7,4628.6,9.90368562]
[1757853999368,1e-08,4628.7,4628.6,9.66298562]
[1757853999573,1e-08,4628.7,4628.6,10.01168562]
[1757854000599,1e-08,4628.7,4628.6,12.79518562]
[1757854001408,1e-08,4628.7,4628.6,13.27798562]
[1757854003990,1e-08,4628.7,4628.6,13.62668562]
[1757854004595,1e-08,4628.7,4628.6,13.62768562]
[1757854005522,1e-08,4628.7,4628.6,10.01268562]
[1757854005687,1e-08,4628.7,4628.6,13.27798562]
[1757854005886,1e-08,4628.7,4628.6,12.79518562]
[1757854006726,1e-08,4628.7,4628.6,12.80678562]
[1757854009113,0.31410001,4628.7,4628.6,12.50638562]
[1757854009319,0.77800001,4628.7,4628.6,12.50638562]
[1757854009830,0.31410001,4628.7,4628.6,12.50638562]
[1757854010127,1e-08,4628.7,4628.6,12.50638562]
[1757854010621,1e-08,4628.7,4628.6,8.89238562]
[1757854010923,1e-08,4628.7,4628.6,12.80378562]
[1757854020655,1e-08,4628.7,4628.6,13.60348562]
[1757854021360,1e-08,4628.7,4628.6,12.50338562]
[1757854022849,1e-08,4628.7,4628.6,8.89238562]
[1757854023042,1e-08,4628.7,4628.6,12.49938562]
[1757854023451,0.4837,4628.9,4628.8,2.95238714]
[1757854023654,0.4837,4628.9,4628.8,11.07070442]
[1757854023836,0.002,4629.2,4628.9,5.95234046]
[1757854024044,0.4538,4629.2,4629.1,5.95224713]
[1757854024362,0.002,4629.2,4629.1,6.06024713]
[1757854024527,0.2883,4629.2,4629.1,7.61017166]
[1757854025053,0.7401,4629.2,4629.1,7.61017166]
[1757854025968,1.2238,4629.2,4629.1,7.61017166]
[1757854026365,0.002,4629.2,4629.1,7.89767166]
[1757854026533,0.002,4629.2,4629.1,8.35637166]
[1757854026733,0.00041461,4629.2,4629.1,8.80737166]
[1757854027051,0.00041461,4629.2,4629.1,9.00951398]
[1757854028886,0.00041461,4629.2,4629.1,8.90151398]
[1757854029052,0.002,4629.7,4629.6,2.95201382]
[1757854029252,0.002,4629.7,4629.6,8.92636585]
[1757854029448,0.002,4629.7,4629.6,9.03356585]
[1757854029888,0.002,4629.7,4629.6,12.32106585]
[1757854030052,0.002,4629.7,4629.6,13.12356585]
[1757854030382,0.002,4629.7,4629.6,13.23076585]
[1757854033386,0.7401,4629.7,4629.6,12.03456585]
[1757854033800,1.2238,4629.7,4629.6,12.03456585]
[1757854034088,0.7401,4629.7,4629.6,12.03456585]
[1757854034283,1.2238,4629.7,4629.6,8.42956585]
[1757854034488,1.2238,4629.7,4629.6,12.03456585]
[1757854035490,0.2883,4629.7,4629.6,12.03456585]
[1757854036898,0.9355,4630.1,4630.0,2.15982721]
[1757854037082,0.4518,4630.1,4630.0,6.77714191]
[1757854037282,0.7567,4630.1,4630.0,6.88434191]
[1757854037684,1.2103,4630.1,4630.0,6.88434191]
[1757854039201,0.7585,4630.1,4630.0,6.88434191]
[1757854040516,1.2028,4630.1,4630.0,6.88434191]
[1757854043511,1.2028,4630.1,4630.0,6.88234191]
[1757854044033,0.7585,4630.1,4630.0,6.88234191]
[1757854045020,0.7585,4630.1,4630.0,3.28034191]
[1757854045332,1.2028,4630.1,4630.0,7.67334191]
[1757854046551,0.7585,4630.1,4630.0,7.67334191]
[1757854047406,0.3049,4630.1,4630.0,7.67334191]
[1757854049849,0.002,4630.6,4630.4,5.15964063]
[1757854050087,0.002,4630.6,4630.4,8.96278295]
[1757854050369,0.002,4630.6,4630.4,11.84186254]
[1757854050558,0.002,4630.6,4630.4,11.94906254]
[1757854051677,0.002,4630.6,4630.4,12.05855588]
[1757854052172,0.002,4630.6,4630.4,12.52019977]
[1757854052630,0.002,4630.6,4630.4,12.05829977]
[1757854053062,0.002,4630.6,4630.4,11.58609977]
[1757854053237,0.002,4630.6,4630.4,12.05829977]
[1757854053442,0.00035005,4630.5,4630.4,12.52019977]
[1757854056036,0.00035005,4630.5,4630.4,12.60658903]
[1757854057961,1e-08,4630.6,4630.5,5.95159399]
[1757854058181,1e-08,4630.6,4630.5,9.0711391]
[1757854058483,1e-08,4630.6,4630.5,10.2921391]
[1757854060777,1e-08,4630.6,4630.5,10.37852277]
[1757854061156,1e-08,4630.8,4630.7,2.95150072]
[1757854061457,1e-08,4630.8,4630.7,11.19131663]
[1757854061778,1e-08,4630.8,4630.7,12.50873468]
[1757854061984,1e-08,4630.8,4630.7,12.59511275]
[1757854063079,1e-08,4630.8,4630.7,12.13321275]
[1757854063472,0.00038036,4631.0,4630.9,2.95140745]
[1757854063672,0.00038036,4631.0,4630.9,11.48255568]
[1757854064182,0.00038036,4631.0,4630.9,11.56893375]
[1757854065995,1.18958036,4631.0,4630.9,4.17693375]
[1757854066197,1.18958036,4631.0,4630.9,2.44767173]
[1757854066362,1.18958036,4631.0,4630.9,6.83967173]
[1757854066564,1.18958036,4631.0,4630.9,9.83967173]
[1757854068263,1.18958036,4631.0,4630.9,3.20188621]
[1757854068608,1.18958036,4631.0,4630.9,6.80188621]
[1757854068893,1.18958036,4631.0,4630.9,0.20188621]
[1757854070998,1.18958036,4631.0,4630.9,2.36129366]
[1757854071497,1.18958036,4631.0,4630.9,0.20188621]
[1757854072679,1.18958036,4631.0,4630.9,2.36129366]
[1757854075611,1.18958036,4631.0,4630.9,0.20188621]
[1757854075974,1.18958036,4631.0,4630.9,2.36129366]
[1757854078214,1.18958036,4631.0,4630.9,0.20188621]
[1757854078507,0.76048036,4631.0,4630.9,2.36129366]
[1757854079310,1.20258036,4631.0,4630.9,2.36129366]
[1757854079610,0.76048036,4631.0,4630.9,2.36129366]
[1757854080320,0.00038036,4631.0,4630.9,2.36129366]
[1757854080492,0.00038036,4631.0,4630.9,2.37207328]
[1757854081600,0.00038036,4631.0,4630.9,4.32996016]
[1757854081788,0.00038036,4631.0,4630.9,5.22448054]
[1757854081984,0.00038036,4631.0,4630.9,5.31086439]
[1757854082212,0.00038036,4631.0,4630.9,8.01156439]
[1757854083001,0.28548036,4631.0,4630.9,6.84467751]
[1757854083197,1.19068036,4631.0,4630.9,6.05367751]
[1757854084726,1.19068036,4631.0,4630.9,3.89427006]
[1757854084908,1.19068036,4631.0,4630.9,6.05367751]
[1757854085831,0.74858036,4631.0,4630.9,6.05367751]
[1757854086528,0.28548036,4631.0,4630.9,6.05367751]
[1757854087409,0.28548036,4631.0,4630.9,2.44767751]
[1757854087619,0.74858036,4631.0,4630.9,6.05267751]
[1757854087824,1.19068036,4631.0,4630.9,6.05267751]
[1757854088344,1.19068036,4631.0,4630.9,0.28827006]
[1757854088650,1.19068036,4631.0,4630.9,3.80688621]
[1757854090117,0.8680484,4631.0,4630.9,0.20188621]
[1757854090444,3.49650123,4631.0,4630.9,0.20188621]
[1757854092829,3.49650123,4631.0,4630.9,0.2018372]
[1757854094037,1.33714041,4631.0,4630.9,0.2018372]
[1757854094925,0.28548036,4631.0,4630.9,0.2018372]
[1757854095254,0.1072,4630.9,4630.8,0.001]